[Event "*** Biggest EVER Titled Tuesday"]
[Site "Chess.com"]
[Date "2018.04.17"]
[Round "8"]
[White "EndgameGrinder"]
[Black "IMRosen"]
[Result "0-1"]
[WhiteElo "2471"]
[BlackElo "2408"]
[TimeControl "180+2"]
[EndTime "14:52:48 PDT"]
[Termination "IMRosen won by checkmate"]

1. e4 {[%clk 0:03:01.9]} 1... c5 {[%clk 0:02:58.7]} 2. Nf3 {[%clk 0:03:02.8]}
2... e6 {[%clk 0:02:55.4]} 3. d4 {[%clk 0:03:04.1]} 3... cxd4 {[%clk 0:02:57.3]}
4. Nxd4 {[%clk 0:03:05.9]} 4... Nc6 {[%clk 0:02:57.7]} 5. Nc3 {[%clk 0:03:06.9]}
5... Qc7 {[%clk 0:02:55.4]} 6. f4 {[%clk 0:03:08.1]} 6... a6 {[%clk 0:02:55.2]}
7. Nxc6 {[%clk 0:03:07.4]} 7... bxc6 {[%clk 0:02:57.1]} 8. Bd3 {[%clk
0:03:08.6]} 8... d5 {[%clk 0:02:58.1]} 9. O-O {[%clk 0:03:08.4]} 9... Nf6 {[%clk
0:02:58.5]} 10. Qe2 {[%clk 0:03:08.5]} 10... Be7 {[%clk 0:02:50.9]} 11. Bd2
{[%clk 0:03:08.9]} 11... O-O {[%clk 0:02:49.3]} 12. Rae1 {[%clk 0:03:09.3]}
12... Re8 {[%clk 0:02:38.4]} 13. Kh1 {[%clk 0:03:06]} 13... d4 {[%clk
0:02:06.4]} 14. Na4 {[%clk 0:03:04.5]} 14... c5 {[%clk 0:02:05.6]} 15. c4 {[%clk
0:02:53.6]} 15... Bb7 {[%clk 0:02:02.7]} 16. e5 {[%clk 0:02:49.5]} 16... Nd7
{[%clk 0:01:59.2]} 17. b3 {[%clk 0:02:43.3]} 17... g6 {[%clk 0:01:54.8]} 18. Be4
{[%clk 0:02:40.3]} 18... Bf8 {[%clk 0:01:51.3]} 19. Ba5 {[%clk 0:02:21.6]} 19...
Qc8 {[%clk 0:01:32.8]} 20. Bxb7 {[%clk 0:02:22.7]} 20... Qxb7 {[%clk 0:01:34.7]}
21. Qe4 {[%clk 0:02:24.1]} 21... Qxe4 {[%clk 0:01:28.1]} 22. Rxe4 {[%clk
0:02:26]} 22... Rac8 {[%clk 0:01:29]} 23. g4 {[%clk 0:02:06]} 23... Nb8 {[%clk
0:01:23.7]} 24. Kg2 {[%clk 0:02:05]} 24... Nc6 {[%clk 0:01:22.8]} 25. Bd2 {[%clk
0:02:05.6]} 25... Rb8 {[%clk 0:00:55.4]} 26. Kf3 {[%clk 0:01:46.6]} 26... Rb7
{[%clk 0:00:56.1]} 27. Ke2 {[%clk 0:01:44.5]} 27... Reb8 {[%clk 0:00:50.3]} 28.
Kd3 {[%clk 0:01:44.4]} 28... a5 {[%clk 0:00:48.3]} 29. h4 {[%clk 0:01:38.2]}
29... Nb4+ {[%clk 0:00:49]} 30. Bxb4 {[%clk 0:01:39.4]} 30... axb4 {[%clk
0:00:48.5]} 31. h5 {[%clk 0:01:39.8]} 31... Ra7 {[%clk 0:00:48.2]} 32. Re2
{[%clk 0:01:39]} 32... Rba8 {[%clk 0:00:48.7]} 33. Rb1 {[%clk 0:01:36.5]} 33...
Be7 {[%clk 0:00:39.6]} 34. Rh2 {[%clk 0:01:35.3]} 34... g5 {[%clk 0:00:35.6]}
35. f5 {[%clk 0:01:34.8]} 35... exf5 {[%clk 0:00:36.7]} 36. gxf5 {[%clk
0:01:36]} 36... h6 {[%clk 0:00:37.9]} 37. f6 {[%clk 0:01:34.7]} 37... Bf8 {[%clk
0:00:35.2]} 38. Rbb2 {[%clk 0:01:31.9]} 38... Ra6 {[%clk 0:00:34.9]} 39. Ke4
{[%clk 0:01:32]} 39... Rd8 {[%clk 0:00:34.3]} 40. Rbd2 {[%clk 0:01:28.8]} 40...
Re8 {[%clk 0:00:34.7]} 41. Rhe2 {[%clk 0:01:26.8]} 41... Rxf6 {[%clk 0:00:34.8]}
42. Kd5 {[%clk 0:01:27.5]} 42... Rd8+ {[%clk 0:00:33.1]} 43. Ke4 {[%clk
0:01:26.4]} 43... Rf4+ {[%clk 0:00:34.4]} 44. Kd3 {[%clk 0:01:27.4]} 44... Rf3+
{[%clk 0:00:28.6]} 45. Ke4 {[%clk 0:01:17.5]} 45... Rh3 {[%clk 0:00:30]} 46. Rh2
{[%clk 0:01:16.9]} 46... Re3+ {[%clk 0:00:24.6]} 47. Kf5 {[%clk 0:01:13.4]}
47... Re8 {[%clk 0:00:26.5]} 48. Rhf2 {[%clk 0:00:58.1]} 48... R8xe5+ {[%clk
0:00:23.8]} 49. Kg4 {[%clk 0:00:59.3]} 49... R5e4+ {[%clk 0:00:23.7]} 50. Kf5
{[%clk 0:00:59]} 50... Bd6 {[%clk 0:00:19.2]} 51. Nb6 {[%clk 0:00:55.2]} 51...
Rh4 {[%clk 0:00:15.8]} 52. Nd7 {[%clk 0:00:46.9]} 52... Kg7 {[%clk 0:00:15.2]}
53. Rde2 {[%clk 0:00:46.7]} 53... Rxe2 {[%clk 0:00:15.5]} 54. Rxe2 {[%clk
0:00:44.4]} 54... Rf4# {[%clk 0:00:16.8]} 0-1

[Event "*** Biggest EVER Titled Tuesday"]
[Site "Chess.com"]
[Date "2018.04.17"]
[Round "8"]
[White "ChessicallyInclined"]
[Black "DrStephenStrange"]
[Result "1/2-1/2"]
[WhiteElo "2152"]
[BlackElo "2012"]
[TimeControl "180+2"]
[EndTime "14:52:48 PDT"]
[Termination "Game drawn by repetition"]

1. d4 {[%clk 0:03:01.9]} 1... Nf6 {[%clk 0:03:00]} 2. c4 {[%clk 0:03:01.8]} 2...
e6 {[%clk 0:03:00.9]} 3. Nc3 {[%clk 0:03:02.1]} 3... d5 {[%clk 0:03:02]} 4. cxd5
{[%clk 0:03:02.4]} 4... exd5 {[%clk 0:03:02.2]} 5. Bg5 {[%clk 0:03:03.7]} 5...
Be7 {[%clk 0:03:01.4]} 6. Qc2 {[%clk 0:03:04.7]} 6... c6 {[%clk 0:03:02.2]} 7.
e3 {[%clk 0:03:04.8]} 7... Nbd7 {[%clk 0:03:02.8]} 8. Bd3 {[%clk 0:03:05.2]}
8... O-O {[%clk 0:03:02.7]} 9. Nge2 {[%clk 0:03:05.1]} 9... Re8 {[%clk
0:03:03.6]} 10. O-O {[%clk 0:03:01.4]} 10... Nf8 {[%clk 0:03:04]} 11. f3 {[%clk
0:03:02.3]} 11... h6 {[%clk 0:02:51.7]} 12. Bh4 {[%clk 0:03:00.1]} 12... c5
{[%clk 0:02:49.5]} 13. Bf2 {[%clk 0:02:44.7]} 13... Ne6 {[%clk 0:02:44.1]} 14.
dxc5 {[%clk 0:02:38.7]} 14... Bxc5 {[%clk 0:02:43.8]} 15. Nd4 {[%clk 0:02:32.4]}
15... Bd7 {[%clk 0:02:33.9]} 16. Rad1 {[%clk 0:02:24.2]} 16... Qb6 {[%clk
0:02:22.8]} 17. Nce2 {[%clk 0:01:34.1]} 17... Rac8 {[%clk 0:02:19.2]} 18. Qb1
{[%clk 0:01:34.2]} 18... a5 {[%clk 0:01:29]} 19. Bc2 {[%clk 0:01:18.1]} 19...
Rc7 {[%clk 0:01:10.6]} 20. Nc3 {[%clk 0:01:17]} 20... Nxd4 {[%clk 0:01:04.2]}
21. exd4 {[%clk 0:01:17]} 21... Bd6 {[%clk 0:01:03.8]} 22. Rfe1 {[%clk
0:01:01.1]} 22... Rcc8 {[%clk 0:01:04.4]} 23. Bb3 {[%clk 0:00:56.3]} 23... Qc7
{[%clk 0:00:47.2]} 24. Nxd5 {[%clk 0:00:35.2]} 24... Nxd5 {[%clk 0:00:46.8]} 25.
Bxd5 {[%clk 0:00:35.5]} 25... Bxh2+ {[%clk 0:00:47.2]} 26. Kh1 {[%clk
0:00:32.8]} 26... Bg3 {[%clk 0:00:43.6]} 27. Bxg3 {[%clk 0:00:23.4]} 27... Qxg3
{[%clk 0:00:42.1]} 28. Be4 {[%clk 0:00:17.7]} 28... b5 {[%clk 0:00:14.5]} 29.
Qd3 {[%clk 0:00:12.5]} 29... Rc4 {[%clk 0:00:11.1]} 30. Qd2 {[%clk 0:00:08.3]}
30... a4 {[%clk 0:00:10.6]} 31. b3 {[%clk 0:00:06.1]} 31... axb3 {[%clk
0:00:11.1]} 32. axb3 {[%clk 0:00:08]} 32... Rcc8 {[%clk 0:00:10.6]} 33. Bd3
{[%clk 0:00:09.3]} 33... Bh3 {[%clk 0:00:07]} 34. Rxe8+ {[%clk 0:00:05.7]} 34...
Rxe8 {[%clk 0:00:07.3]} 35. gxh3 {[%clk 0:00:07.2]} 35... Qxh3+ {[%clk 0:00:08]}
36. Kg1 {[%clk 0:00:07]} 36... Qxf3 {[%clk 0:00:08.1]} 37. Bf1 {[%clk
0:00:07.2]} 37... Re6 {[%clk 0:00:07.9]} 38. Bg2 {[%clk 0:00:08.3]} 38... Rg6
{[%clk 0:00:08.7]} 39. d5 {[%clk 0:00:09.5]} 39... Rxg2+ {[%clk 0:00:02.7]} 40.
Qxg2 {[%clk 0:00:10]} 40... Qxd1+ {[%clk 0:00:04.2]} 41. Kh2 {[%clk 0:00:11.2]}
41... Qh5+ {[%clk 0:00:04.9]} 42. Kg1 {[%clk 0:00:11.9]} 42... Qd1+ {[%clk
0:00:05.4]} 43. Kh2 {[%clk 0:00:12.5]} 43... Qh5+ {[%clk 0:00:06.3]} 44. Kg1
{[%clk 0:00:13.7]} 44... Qd1+ {[%clk 0:00:07]} 1/2-1/2

[Event "*** Biggest EVER Titled Tuesday"]
[Site "Chess.com"]
[Date "2018.04.17"]
[Round "8"]
[White "Kislov_Oleg"]
[Black "Bauxi435"]
[Result "0-1"]
[WhiteElo "2254"]
[BlackElo "2429"]
[TimeControl "180+2"]
[EndTime "14:52:48 PDT"]
[Termination "Bauxi435 won by resignation"]

1. e4 {[%clk 0:02:23.7]} 1... c5 {[%clk 0:03:00.2]} 2. Nf3 {[%clk 0:02:24.4]}
2... e6 {[%clk 0:03:01.2]} 3. c3 {[%clk 0:02:24.8]} 3... Nf6 {[%clk 0:03:01.4]}
4. e5 {[%clk 0:02:23.8]} 4... Nd5 {[%clk 0:03:02.3]} 5. d4 {[%clk 0:02:25.2]}
5... cxd4 {[%clk 0:03:04.2]} 6. cxd4 {[%clk 0:02:25.8]} 6... Nc6 {[%clk
0:03:04.8]} 7. Nc3 {[%clk 0:02:26.5]} 7... Nxc3 {[%clk 0:03:01.7]} 8. bxc3
{[%clk 0:02:27.7]} 8... d6 {[%clk 0:03:01.9]} 9. exd6 {[%clk 0:02:28.3]} 9...
Bxd6 {[%clk 0:03:02.2]} 10. Bd3 {[%clk 0:02:27.9]} 10... h6 {[%clk 0:03:01.6]}
11. O-O {[%clk 0:02:28]} 11... Qc7 {[%clk 0:03:01.3]} 12. Qe2 {[%clk 0:02:27.2]}
12... b6 {[%clk 0:02:55.4]} 13. d5 {[%clk 0:02:19.9]} 13... Ne7 {[%clk
0:02:56.3]} 14. Bb5+ {[%clk 0:02:19.3]} 14... Kf8 {[%clk 0:02:49.1]} 15. dxe6
{[%clk 0:02:14.7]} 15... Bxe6 {[%clk 0:02:50.5]} 16. Nd4 {[%clk 0:02:14.8]}
16... Bd5 {[%clk 0:02:43.5]} 17. h3 {[%clk 0:02:07.9]} 17... g6 {[%clk 0:02:29]}
18. Bb2 {[%clk 0:02:00.5]} 18... Bb7 {[%clk 0:02:22]} 19. c4 {[%clk 0:01:57.7]}
19... Rg8 {[%clk 0:02:10.2]} 20. Rfe1 {[%clk 0:01:50]} 20... Bc5 {[%clk
0:01:56.5]} 21. Rad1 {[%clk 0:01:45]} 21... Rd8 {[%clk 0:01:40.7]} 22. Ne6+
{[%clk 0:01:44]} 22... fxe6 {[%clk 0:01:37.5]} 23. Qxe6 {[%clk 0:01:45.5]} 23...
Rd6 {[%clk 0:00:35.8]} 24. Qg4 {[%clk 0:01:10.1]} 24... Bc8 {[%clk 0:00:21.3]}
25. Qf4+ {[%clk 0:01:02.4]} 25... Nf5 {[%clk 0:00:18.6]} 26. Be5 {[%clk
0:00:39.7]} 26... Rxd1 {[%clk 0:00:16.9]} 27. Rxd1 {[%clk 0:00:40.8]} 27... Qe7
{[%clk 0:00:15.1]} 28. g4 {[%clk 0:00:38.8]} 28... Kf7 {[%clk 0:00:16.2]} 29.
gxf5 {[%clk 0:00:33.5]} 29... Bxf5 {[%clk 0:00:17.3]} 30. Bc6 {[%clk 0:00:33.4]}
30... Rd8 {[%clk 0:00:17.6]} 31. Bd5+ {[%clk 0:00:34.2]} 31... Kf8 {[%clk
0:00:18.6]} 32. Qxh6+ {[%clk 0:00:34.9]} 32... Ke8 {[%clk 0:00:19.8]} 33. Qh8+
{[%clk 0:00:29.8]} 33... Kd7 {[%clk 0:00:17.4]} 34. Bc6+ {[%clk 0:00:28.6]}
34... Kxc6 {[%clk 0:00:18.7]} 35. Qxd8 {[%clk 0:00:29.7]} 35... Qxe5 {[%clk
0:00:19.3]} 36. Qa8+ {[%clk 0:00:30.1]} 36... Kc7 {[%clk 0:00:20.1]} 37. Qd8+
{[%clk 0:00:30.9]} 37... Kb7 {[%clk 0:00:21]} 38. Qd5+ {[%clk 0:00:30.4]} 38...
Qxd5 {[%clk 0:00:21.8]} 39. Rxd5 {[%clk 0:00:31.9]} 39... Bxh3 {[%clk
0:00:22.8]} 40. Kh2 {[%clk 0:00:29.9]} 40... Bf5 {[%clk 0:00:23.8]} 41. Kg3
{[%clk 0:00:30.7]} 41... Kc6 {[%clk 0:00:25.1]} 42. f3 {[%clk 0:00:31]} 42...
Bb1 {[%clk 0:00:26.2]} 43. a4 {[%clk 0:00:31.1]} 43... Ba2 {[%clk 0:00:25.1]}
44. Rg5 {[%clk 0:00:31.7]} 44... Bb1 {[%clk 0:00:26.4]} 45. Re5 {[%clk
0:00:32.5]} 45... Kb7 {[%clk 0:00:27.2]} 46. Kg4 {[%clk 0:00:33.1]} 46... Kc6
{[%clk 0:00:29.1]} 47. Re6+ {[%clk 0:00:33.9]} 47... Kb7 {[%clk 0:00:29.9]} 48.
Kg5 {[%clk 0:00:33.4]} 48... Ka6 {[%clk 0:00:30.8]} 49. Re8 {[%clk 0:00:31.1]}
49... Ka5 {[%clk 0:00:31.9]} 50. Re1 {[%clk 0:00:32]} 50... Bd3 {[%clk
0:00:31.8]} 51. Rd1 {[%clk 0:00:31.8]} 51... Bf5 {[%clk 0:00:32.8]} 52. Ra1
{[%clk 0:00:32.5]} 52... Kb4 {[%clk 0:00:33.7]} 53. Kf6 {[%clk 0:00:30.1]} 53...
Bd4+ {[%clk 0:00:34.1]} 0-1

[Event "*** Biggest EVER Titled Tuesday"]
[Site "Chess.com"]
[Date "2018.04.17"]
[Round "8"]
[White "Safar_From_Afar"]
[Black "itisabigworld"]
[Result "1-0"]
[WhiteElo "2287"]
[BlackElo "2247"]
[TimeControl "180+2"]
[EndTime "14:52:49 PDT"]
[Termination "Safar_From_Afar won by resignation"]

1. e4 {[%clk 0:03:01.9]} 1... d6 {[%clk 0:02:57.9]} 2. d4 {[%clk 0:03:01.8]}
2... Nf6 {[%clk 0:02:57.5]} 3. Nc3 {[%clk 0:03:01.3]} 3... g6 {[%clk 0:02:58.6]}
4. f3 {[%clk 0:03:02.5]} 4... c6 {[%clk 0:02:55.4]} 5. Be3 {[%clk 0:03:03.7]}
5... b5 {[%clk 0:02:56.3]} 6. Qd2 {[%clk 0:03:04]} 6... Qa5 {[%clk 0:02:52.5]}
7. Bd3 {[%clk 0:02:43.4]} 7... Nbd7 {[%clk 0:02:48.1]} 8. Nge2 {[%clk
0:02:44.2]} 8... Bb7 {[%clk 0:02:47.2]} 9. O-O {[%clk 0:02:40.4]} 9... Bg7
{[%clk 0:02:47.4]} 10. b4 {[%clk 0:02:40.4]} 10... Qc7 {[%clk 0:02:34.7]} 11. a4
{[%clk 0:02:40]} 11... bxa4 {[%clk 0:02:31]} 12. Rxa4 {[%clk 0:02:34.9]} 12...
O-O {[%clk 0:02:30.9]} 13. Rfa1 {[%clk 0:02:33.1]} 13... Bc8 {[%clk 0:02:30.1]}
14. Ra5 {[%clk 0:02:29.5]} 14... e5 {[%clk 0:02:30.1]} 15. dxe5 {[%clk
0:02:19.8]} 15... Nxe5 {[%clk 0:02:29.5]} 16. Rxa7 {[%clk 0:02:19.4]} 16... Rxa7
{[%clk 0:02:28.9]} 17. Rxa7 {[%clk 0:02:20.3]} 17... Qb8 {[%clk 0:02:29.7]} 18.
b5 {[%clk 0:02:20.7]} 18... Bh6 {[%clk 0:02:26.8]} 19. Ra1 {[%clk 0:02:11]}
19... Bxe3+ {[%clk 0:02:18.5]} 20. Qxe3 {[%clk 0:02:12.9]} 20... Nxd3 {[%clk
0:02:17.6]} 21. cxd3 {[%clk 0:02:11.6]} 21... cxb5 {[%clk 0:02:17.7]} 22. Qd4
{[%clk 0:02:02.8]} 22... Nd7 {[%clk 0:02:14.8]} 23. Nd5 {[%clk 0:01:56.7]} 23...
Re8 {[%clk 0:02:12.1]} 24. Ra5 {[%clk 0:01:53.5]} 24... Qb7 {[%clk 0:02:06.5]}
25. Ra7 {[%clk 0:01:49.7]} 25... Qc6 {[%clk 0:01:59.4]} 26. Rc7 {[%clk
0:01:33.4]} 26... Qa6 {[%clk 0:01:59.8]} 27. Rxd7 {[%clk 0:01:30.9]} 27... Bxd7
{[%clk 0:02:00.3]} 28. Nf6+ {[%clk 0:01:31.7]} 28... Kf8 {[%clk 0:02:01.3]} 29.
Nxh7+ {[%clk 0:01:29.1]} 29... Kg8 {[%clk 0:01:58.6]} 30. Nf6+ {[%clk
0:01:29.9]} 30... Kf8 {[%clk 0:01:57.1]} 31. Nxd7+ {[%clk 0:01:30.9]} 31... Ke7
{[%clk 0:01:58.6]} 32. Nb6 {[%clk 0:01:28.9]} 32... Qa5 {[%clk 0:01:41.5]} 33.
Nd5+ {[%clk 0:01:14.2]} 33... Kd7 {[%clk 0:01:41.7]} 34. Kf1 {[%clk 0:01:13.8]}
34... Rd8 {[%clk 0:01:25.6]} 35. Qf6 {[%clk 0:01:11.8]} 35... b4 {[%clk
0:01:17]} 36. Qxf7+ {[%clk 0:01:10.4]} 36... Kc8 {[%clk 0:01:17.5]} 37. Nd4
{[%clk 0:01:11]} 37... Qa1+ {[%clk 0:01:15.3]} 38. Ke2 {[%clk 0:01:09.4]} 38...
Qb2+ {[%clk 0:01:16.2]} 39. Kd1 {[%clk 0:01:09]} 39... Qb1+ {[%clk 0:01:09.2]}
40. Kd2 {[%clk 0:01:10]} 40... Qa2+ {[%clk 0:01:01.8]} 41. Nc2 {[%clk
0:01:02.2]} 41... Qa5 {[%clk 0:01:01.3]} 42. Ncxb4 {[%clk 0:01:00.7]} 42... Rd7
{[%clk 0:01:00.2]} 43. Qe6 {[%clk 0:00:57.9]} 43... Qb5 {[%clk 0:00:55.9]} 44.
Qxg6 {[%clk 0:00:56.4]} 44... Kb7 {[%clk 0:00:56.1]} 45. Qe8 {[%clk 0:00:54.7]}
45... Qa4 {[%clk 0:00:52.8]} 46. h4 {[%clk 0:00:50]} 46... Ka7 {[%clk
0:00:46.3]} 47. h5 {[%clk 0:00:46.4]} 47... Qb5 {[%clk 0:00:36.1]} 48. h6 {[%clk
0:00:44.3]} 48... Qb7 {[%clk 0:00:37]} 49. g4 {[%clk 0:00:41.7]} 49... Rf7
{[%clk 0:00:27.7]} 50. Qa4+ {[%clk 0:00:42.1]} 50... Kb8 {[%clk 0:00:26]} 51.
Na6+ {[%clk 0:00:43.6]} 51... Ka7 {[%clk 0:00:22.9]} 52. Nc5+ {[%clk 0:00:43.4]}
1-0

[Event "*** Biggest EVER Titled Tuesday"]
[Site "Chess.com"]
[Date "2018.04.17"]
[Round "8"]
[White "underdogchss"]
[Black "TheCount"]
[Result "0-1"]
[WhiteElo "2375"]
[BlackElo "2535"]
[TimeControl "180+2"]
[EndTime "14:52:52 PDT"]
[Termination "TheCount won by resignation"]

1. d4 {[%clk 0:03:01.9]} 1... Nf6 {[%clk 0:03:00.8]} 2. Nf3 {[%clk 0:03:00.6]}
2... g6 {[%clk 0:03:01.7]} 3. c4 {[%clk 0:02:56.9]} 3... Bg7 {[%clk 0:03:02.9]}
4. g3 {[%clk 0:02:50.7]} 4... O-O {[%clk 0:03:03.5]} 5. Bg2 {[%clk 0:02:48.2]}
5... d5 {[%clk 0:03:03.5]} 6. cxd5 {[%clk 0:02:48.3]} 6... Nxd5 {[%clk
0:03:05.4]} 7. O-O {[%clk 0:02:49.2]} 7... Nb6 {[%clk 0:03:06.7]} 8. Nc3 {[%clk
0:02:49.6]} 8... Nc6 {[%clk 0:03:05.3]} 9. e3 {[%clk 0:02:50.3]} 9... Re8 {[%clk
0:02:55.2]} 10. h3 {[%clk 0:02:50.9]} 10... Bd7 {[%clk 0:02:44.6]} 11. b3 {[%clk
0:02:39.6]} 11... e5 {[%clk 0:02:45.3]} 12. d5 {[%clk 0:02:40.5]} 12... Ne7
{[%clk 0:02:46.5]} 13. e4 {[%clk 0:02:40.7]} 13... c6 {[%clk 0:02:45.6]} 14. d6
{[%clk 0:01:45.1]} 14... Nec8 {[%clk 0:02:45.1]} 15. Ba3 {[%clk 0:01:46.2]}
15... Re6 {[%clk 0:02:33.5]} 16. h4 {[%clk 0:01:23.7]} 16... Bf8 {[%clk
0:02:26.7]} 17. Ng5 {[%clk 0:01:13]} 17... Rf6 {[%clk 0:02:26.9]} 18. h5 {[%clk
0:00:59.9]} 18... Bxd6 {[%clk 0:02:21.9]} 19. Bb2 {[%clk 0:00:52.3]} 19... h6
{[%clk 0:02:15.7]} 20. Nh3 {[%clk 0:00:35.1]} 20... Bc5 {[%clk 0:01:45.3]} 21.
Kh2 {[%clk 0:00:34.7]} 21... Rd6 {[%clk 0:01:31.6]} 22. Qe2 {[%clk 0:00:31.6]}
22... Bd4 {[%clk 0:01:27.6]} 23. hxg6 {[%clk 0:00:29.2]} 23... fxg6 {[%clk
0:01:27.3]} 24. Rad1 {[%clk 0:00:28.7]} 24... h5 {[%clk 0:01:01.3]} 25. f3
{[%clk 0:00:19.3]} 25... Qe7 {[%clk 0:00:58.9]} 26. Rd3 {[%clk 0:00:12.2]} 26...
c5 {[%clk 0:00:57.2]} 27. Rdd1 {[%clk 0:00:11.4]} 27... a5 {[%clk 0:00:51.2]}
28. a4 {[%clk 0:00:12.1]} 28... Be6 {[%clk 0:00:51.2]} 29. Nb5 {[%clk
0:00:11.8]} 29... Rd8 {[%clk 0:00:48.4]} 30. Qc2 {[%clk 0:00:10.3]} 30... Nd6
{[%clk 0:00:45.8]} 31. Nxd4 {[%clk 0:00:09.9]} 31... cxd4 {[%clk 0:00:47.3]} 32.
Qc5 {[%clk 0:00:11.1]} 32... Bxb3 {[%clk 0:00:44.4]} 33. Qxb6 {[%clk 0:00:11]}
33... Bxd1 {[%clk 0:00:42]} 34. Rxd1 {[%clk 0:00:12.9]} 34... Nc4 {[%clk
0:00:33.7]} 35. Qb3 {[%clk 0:00:13.8]} 35... Qb4 {[%clk 0:00:34.5]} 36. Qxb4
{[%clk 0:00:11.8]} 36... axb4 {[%clk 0:00:36.4]} 37. Bc1 {[%clk 0:00:11.5]}
37... b3 {[%clk 0:00:34.4]} 38. Bg5 {[%clk 0:00:13.4]} 38... Rdc8 {[%clk
0:00:33.4]} 39. Bf1 {[%clk 0:00:12.8]} 39... Rxa4 {[%clk 0:00:31.1]} 40. Rb1
{[%clk 0:00:12.4]} 40... b2 {[%clk 0:00:21.3]} 41. Bxc4+ {[%clk 0:00:12.3]}
41... Raxc4 {[%clk 0:00:23.2]} 42. Rxb2 {[%clk 0:00:13.6]} 42... Rc2+ {[%clk
0:00:24.8]} 43. Rxc2 {[%clk 0:00:14.9]} 43... Rxc2+ {[%clk 0:00:26.6]} 44. Kg1
{[%clk 0:00:16.3]} 44... b5 {[%clk 0:00:27.6]} 45. Be7 {[%clk 0:00:17]} 45... d3
{[%clk 0:00:27.6]} 46. Nf2 {[%clk 0:00:17.4]} 46... Rc1+ {[%clk 0:00:21.1]} 47.
Kg2 {[%clk 0:00:18]} 47... d2 {[%clk 0:00:22.7]} 48. Bb4 {[%clk 0:00:16.3]}
48... d1=Q {[%clk 0:00:23.1]} 49. Nxd1 {[%clk 0:00:17.4]} 49... Rxd1 {[%clk
0:00:25]} 0-1

[Event "*** Biggest EVER Titled Tuesday"]
[Site "Chess.com"]
[Date "2018.04.17"]
[Round "8"]
[White "ChessMavenYeti"]
[Black "Cocaino74"]
[Result "0-1"]
[WhiteElo "2102"]
[BlackElo "2161"]
[TimeControl "180+2"]
[EndTime "14:53:08 PDT"]
[Termination "Cocaino74 won by resignation"]

1. d4 {[%clk 0:03:01.8]} 1... d5 {[%clk 0:02:59.4]} 2. c4 {[%clk 0:03:01.9]}
2... e6 {[%clk 0:03:00.9]} 3. Nf3 {[%clk 0:03:00.6]} 3... c6 {[%clk 0:03:01.8]}
4. g3 {[%clk 0:02:58.1]} 4... dxc4 {[%clk 0:03:01.3]} 5. Bg2 {[%clk 0:02:58.3]}
5... b5 {[%clk 0:03:01.7]} 6. O-O {[%clk 0:02:59.1]} 6... Bb7 {[%clk 0:03:00.6]}
7. a4 {[%clk 0:02:59.1]} 7... a6 {[%clk 0:03:00.7]} 8. Ne5 {[%clk 0:02:59.2]}
8... Nf6 {[%clk 0:02:50.4]} 9. b3 {[%clk 0:02:56]} 9... cxb3 {[%clk 0:02:44.7]}
10. Qxb3 {[%clk 0:02:55.5]} 10... Qxd4 {[%clk 0:02:30.9]} 11. Bb2 {[%clk
0:02:54]} 11... Qb4 {[%clk 0:02:32.1]} 12. Qc2 {[%clk 0:02:53.8]} 12... Qc5
{[%clk 0:02:19.7]} 13. Qb3 {[%clk 0:02:44.5]} 13... Qb4 {[%clk 0:02:20.3]} 14.
Qc2 {[%clk 0:02:41.6]} 14... Qc5 {[%clk 0:02:13.9]} 15. Qb3 {[%clk 0:02:25.1]}
15... Be7 {[%clk 0:01:47.1]} 16. Rc1 {[%clk 0:02:22.2]} 16... Qb4 {[%clk
0:01:36.3]} 17. Qc2 {[%clk 0:02:09.4]} 17... Nd5 {[%clk 0:01:33.9]} 18. e4
{[%clk 0:02:02.2]} 18... Nb6 {[%clk 0:01:28.5]} 19. axb5 {[%clk 0:01:53.1]}
19... axb5 {[%clk 0:01:21.6]} 20. Rxa8 {[%clk 0:01:50.4]} 20... Bxa8 {[%clk
0:01:23.5]} 21. Ba3 {[%clk 0:01:51.5]} 21... Qa4 {[%clk 0:01:20.1]} 22. Bxe7
{[%clk 0:01:51]} 22... Qxc2 {[%clk 0:01:19.4]} 23. Rxc2 {[%clk 0:01:49.9]} 23...
Kxe7 {[%clk 0:01:20.9]} 24. Nd3 {[%clk 0:01:41.6]} 24... N8d7 {[%clk 0:01:16.8]}
25. e5 {[%clk 0:01:38.7]} 25... c5 {[%clk 0:01:14.4]} 26. Nxc5 {[%clk
0:01:37.6]} 26... Rc8 {[%clk 0:01:12.3]} 27. Nxd7 {[%clk 0:01:29.3]} 27... Rxc2
{[%clk 0:00:37.4]} 28. Nxb6 {[%clk 0:01:08.3]} 28... Bxg2 {[%clk 0:00:24.6]} 29.
Kxg2 {[%clk 0:01:05.9]} 29... Rc6 {[%clk 0:00:18.7]} 30. Na8 {[%clk 0:01:02.6]}
30... Rc8 {[%clk 0:00:17.4]} 31. Nb6 {[%clk 0:01:02.3]} 31... Rc6 {[%clk
0:00:17.4]} 32. Na8 {[%clk 0:01:03.1]} 32... Rc8 {[%clk 0:00:15.2]} 33. Nb6
{[%clk 0:01:03]} 33... Rb8 {[%clk 0:00:16.6]} 34. Kf3 {[%clk 0:00:53.8]} 34...
Rxb6 {[%clk 0:00:17.2]} 35. Ke4 {[%clk 0:00:55.7]} 35... Rc6 {[%clk 0:00:17.7]}
36. Kd4 {[%clk 0:00:55.2]} 36... Rc4+ {[%clk 0:00:17.7]} 37. Kd3 {[%clk
0:00:56]} 37... Ra4 {[%clk 0:00:09.9]} 38. Nc3 {[%clk 0:00:55.2]} 38... Ra3
{[%clk 0:00:10.9]} 39. Kc2 {[%clk 0:00:55.8]} 39... b4 {[%clk 0:00:11.5]} 40.
Ne4 {[%clk 0:00:52.7]} 40... f6 {[%clk 0:00:09.6]} 41. f4 {[%clk 0:00:50.5]}
41... Ra2+ {[%clk 0:00:06.7]} 42. Kb3 {[%clk 0:00:51.1]} 42... Re2 {[%clk
0:00:07.4]} 43. exf6+ {[%clk 0:00:48.2]} 43... gxf6 {[%clk 0:00:07.5]} 44. Nc5
{[%clk 0:00:48]} 44... Rxh2 {[%clk 0:00:07.9]} 45. Kxb4 {[%clk 0:00:49]} 45...
Rg2 {[%clk 0:00:06.3]} 46. Ne4 {[%clk 0:00:49.8]} 46... Re2 {[%clk 0:00:07.4]}
47. Nc3 {[%clk 0:00:49.4]} 47... Re3 {[%clk 0:00:07.5]} 48. g4 {[%clk 0:00:50]}
48... Rg3 {[%clk 0:00:08.2]} 49. g5 {[%clk 0:00:49]} 49... fxg5 {[%clk
0:00:08.8]} 50. fxg5 {[%clk 0:00:50.9]} 50... Rxg5 {[%clk 0:00:10.1]} 51. Kc4
{[%clk 0:00:51.8]} 51... Rg3 {[%clk 0:00:08.7]} 52. Ne2 {[%clk 0:00:51.6]} 52...
Rf3 {[%clk 0:00:08.4]} 53. Kd4 {[%clk 0:00:51.9]} 53... Rf2 {[%clk 0:00:08.4]}
54. Nc3 {[%clk 0:00:51.7]} 54... h5 {[%clk 0:00:08.7]} 55. Ke3 {[%clk
0:00:50.5]} 55... Rf5 {[%clk 0:00:08.7]} 56. Ke4 {[%clk 0:00:47.8]} 56... Kf6
{[%clk 0:00:07]} 57. Ne2 {[%clk 0:00:48.8]} 57... Re5+ {[%clk 0:00:08]} 58. Kf3
{[%clk 0:00:48.2]} 58... Rxe2 {[%clk 0:00:09.6]} 0-1